[Event "Titled Tuesday Blitz March 28 Late 2023"]
[White "Shankland, Sam"]
[Black "Bluebaum, Matthias"]
[WhiteFideId "2004887"]
[BlackFideId "24651516"]
[WhiteElo "2638"]
[BlackElo "2638"]
[Result "0-1"]
[Round "05"]
[TimeControl "180+2"]
[Date "2023.03.28"]
[WhiteClock "0:00:38"]
[BlackClock "0:00:02"]

1. d4 {[%clk 0:03:00]}  d5 {[%clk 0:03:00]} 2. c4 {[%clk 0:03:01]}  e6 {[%clk 0:03:00]} 3. Nf3 {[%clk 0:02:59]}  Nf6 {[%clk 0:03:00]} 4. Nc3 {[%clk 0:02:59]}  Bb4 {[%clk 0:03:00]} 5. Qa4+ {[%clk 0:02:59]}  Nc6 {[%clk 0:02:59]} 6. Bd2 {[%clk 0:02:59]}  dxc4 {[%clk 0:02:42]} 7. a3 {[%clk 0:02:59]}  Bxc3 {[%clk 0:02:42]} 8. Bxc3 {[%clk 0:02:59]}  Qd5 {[%clk 0:02:41]} 9. Nd2 {[%clk 0:02:54]}  b5 {[%clk 0:02:40]} 10. Qd1 {[%clk 0:02:51]}  Bb7 {[%clk 0:02:27]} 11. e3 {[%clk 0:02:49]}  O-O {[%clk 0:02:26]} 12. f3 {[%clk 0:02:34]}  Qd6 {[%clk 0:02:14]} 13. b3 {[%clk 0:02:26]}  Nd5 {[%clk 0:02:06]} 14. Ne4 {[%clk 0:02:22]}  Nxc3 {[%clk 0:01:56]} 15. Nxc3 {[%clk 0:02:19]}  e5 {[%clk 0:01:47]} 16. d5 {[%clk 0:02:10]}  Na5 {[%clk 0:01:45]} 17. bxc4 {[%clk 0:02:03]}  bxc4 {[%clk 0:01:41]} 18. Rb1 {[%clk 0:01:57]}  Qc5 {[%clk 0:01:38]} 19. Kf2 {[%clk 0:01:54]}  Nb3 {[%clk 0:01:35]} 20. Qc2 {[%clk 0:01:47]}  Ba6 {[%clk 0:01:21]} 21. Be2 {[%clk 0:01:43]}  Nd4 {[%clk 0:01:09]} 22. exd4 {[%clk 0:01:34]}  exd4 {[%clk 0:01:10]} 23. Ne4 {[%clk 0:01:35]}  Qxd5 {[%clk 0:01:10]} 24. Rhd1 {[%clk 0:01:33]}  f5 {[%clk 0:00:59]} 25. Nc3 {[%clk 0:01:08]}  Qe5 {[%clk 0:00:40]} 26. Qa4 {[%clk 0:01:08]}  dxc3 {[%clk 0:00:35]} 27. Bxc4+ {[%clk 0:00:47]}  Bxc4 {[%clk 0:00:36]} 28. Qxc4+ {[%clk 0:00:48]}  Kh8 {[%clk 0:00:37]} 29. f4 {[%clk 0:00:48]}  Qf6 {[%clk 0:00:32]} 30. Rbc1 {[%clk 0:00:48]}  Rad8 {[%clk 0:00:25]} 31. Rxd8 {[%clk 0:00:48]}  Rxd8 {[%clk 0:00:25]} 32. Qxc3 {[%clk 0:00:48]}  Qh4+ {[%clk 0:00:26]} 33. Qg3 {[%clk 0:00:47]}  Qf6 {[%clk 0:00:25]} 34. Qe3 {[%clk 0:00:47]}  Qd6 {[%clk 0:00:18]} 35. Rc5 {[%clk 0:00:45]}  g6 {[%clk 0:00:15]} 36. Re5 {[%clk 0:00:45]}  Qc6 {[%clk 0:00:09]} 37. Kg3 {[%clk 0:00:44]}  Qc2 {[%clk 0:00:04]} 38. Rc5 {[%clk 0:00:40]}  Qe4 {[%clk 0:00:03]} 39. Qc3+ {[%clk 0:00:38]}  Kg8 {[%clk 0:00:02]} 40. Rxc7 {[%clk 0:00:38]}  Rd3+ {[%clk 0:00:02]} 0-1


[Site "https://www.chess.com"]

[Event "Titled Tuesday Blitz March 28 Late 2023"]
[White "Talibov, Shiroghlan"]
[Black "Horvath, Dominik"]
[WhiteFideId "13429078"]
[BlackFideId "1642561"]
[WhiteElo "2218"]
[BlackElo "2407"]
[Result "1-0"]
[Round "05"]
[TimeControl "180+2"]
[Date "2023.03.28"]
[WhiteClock "0:00:06"]
[BlackClock "0:00:05"]

1. d4 {[%clk 0:01:54]}  Nf6 {[%clk 0:02:59]} 2. c4 {[%clk 0:01:54]}  e6 {[%clk 0:03:00]} 3. Nf3 {[%clk 0:01:51]}  d5 {[%clk 0:03:00]} 4. Nc3 {[%clk 0:01:51]}  Bb4 {[%clk 0:03:00]} 5. Qa4+ {[%clk 0:01:49]}  Nc6 {[%clk 0:02:59]} 6. e3 {[%clk 0:01:48]}  O-O {[%clk 0:02:59]} 7. Bd2 {[%clk 0:01:47]}  Re8 {[%clk 0:02:59]} 8. Qc2 {[%clk 0:01:41]}  Bf8 {[%clk 0:02:59]} 9. a3 {[%clk 0:01:27]}  h6 {[%clk 0:02:59]} 10. Bd3 {[%clk 0:01:23]}  e5 {[%clk 0:02:50]} 11. cxd5 {[%clk 0:01:20]}  Nxd4 {[%clk 0:02:29]} 12. exd4 {[%clk 0:01:15]}  e4 {[%clk 0:02:30]} 13. Nxe4 {[%clk 0:01:11]}  Nxe4 {[%clk 0:02:30]} 14. Bxe4 {[%clk 0:01:12]}  f5 {[%clk 0:01:55]} 15. Ne5 {[%clk 0:01:06]}  fxe4 {[%clk 0:01:54]} 16. Qxe4 {[%clk 0:01:04]}  Qf6 {[%clk 0:01:54]} 17. O-O {[%clk 0:01:00]}  Bf5 {[%clk 0:01:55]} 18. Qf3 {[%clk 0:00:59]}  Rad8 {[%clk 0:01:49]} 19. Rfe1 {[%clk 0:00:56]}  Bd6 {[%clk 0:01:47]} 20. Bc3 {[%clk 0:00:54]}  Rf8 {[%clk 0:01:43]} 21. Nc4 {[%clk 0:00:48]}  Qg6 {[%clk 0:01:32]} 22. Nxd6 {[%clk 0:00:44]}  cxd6 {[%clk 0:01:30]} 23. Qg3 {[%clk 0:00:41]}  Qf7 {[%clk 0:01:27]} 24. Re3 {[%clk 0:00:33]}  Qxd5 {[%clk 0:01:27]} 25. Rae1 {[%clk 0:00:33]}  Rf7 {[%clk 0:01:20]} 26. h3 {[%clk 0:00:32]}  Rdf8 {[%clk 0:01:19]} 27. Rf3 {[%clk 0:00:27]}  Be4 {[%clk 0:01:11]} 28. Rxf7 {[%clk 0:00:28]}  Rxf7 {[%clk 0:01:12]} 29. f3 {[%clk 0:00:23]}  Bf5 {[%clk 0:01:11]} 30. Kh2 {[%clk 0:00:23]}  Kh7 {[%clk 0:01:11]} 31. Qh4 {[%clk 0:00:21]}  a5 {[%clk 0:01:04]} 32. Qd8 {[%clk 0:00:21]}  a4 {[%clk 0:00:51]} 33. Re8 {[%clk 0:00:19]}  Kg6 {[%clk 0:00:36]} 34. Rh8 {[%clk 0:00:15]}  Bxh3 {[%clk 0:00:28]} 35. Qh4 {[%clk 0:00:13]}  Be6 {[%clk 0:00:23]} 36. Qg3+ {[%clk 0:00:11]}  Qg5 {[%clk 0:00:20]} 37. Qxd6 {[%clk 0:00:11]}  Rf6 {[%clk 0:00:20]} 38. d5 {[%clk 0:00:07]}  Qh4+ {[%clk 0:00:18]} 39. Kg1 {[%clk 0:00:07]}  Bf5 {[%clk 0:00:04]} 40. Qe5 {[%clk 0:00:05]}  Rf7 {[%clk 0:00:03]} 41. Re8 {[%clk 0:00:05]}  Kh7 {[%clk 0:00:03]} 42. d6 {[%clk 0:00:05]}  Bd7 {[%clk 0:00:03]} 43. Re7 {[%clk 0:00:05]}  Rxe7 {[%clk 0:00:03]} 44. dxe7 {[%clk 0:00:05]}  Qg5 {[%clk 0:00:03]} 45. e8=Q {[%clk 0:00:04]}  Qc1+ {[%clk 0:00:03]} 46. Qe1 {[%clk 0:00:02]}  Qf4 {[%clk 0:00:03]} 47. Q8e4+ {[%clk 0:00:02]}  Qxe4 {[%clk 0:00:03]} 48. Qxe4+ {[%clk 0:00:03]}  Kg8 {[%clk 0:00:04]} 49. Qe5 {[%clk 0:00:04]}  Kf8 {[%clk 0:00:04]} 50. Qxg7+ {[%clk 0:00:05]}  Ke8 {[%clk 0:00:05]} 51. Bf6 {[%clk 0:00:05]}  Be6 {[%clk 0:00:05]} 52. Qe7# {[%clk 0:00:06]} 1-0


[Site "https://www.chess.com"]

[Event "Titled Tuesday Blitz March 28 Late 2023"]
[White "Vachier-Lagrave, Maxime"]
[Black "Urazayev, Arystanbek"]
[WhiteFideId "623539"]
[BlackFideId "13709810"]
[WhiteElo "2740"]
[BlackElo "2479"]
[Result "1-0"]
[Round "05"]
[TimeControl "180+2"]
[Date "2023.03.28"]
[WhiteClock "0:01:25"]
[BlackClock "0:00:20"]

1. e4 {[%clk 0:03:00]}  c6 {[%clk 0:02:59]} 2. d4 {[%clk 0:02:59]}  d5 {[%clk 0:03:00]} 3. e5 {[%clk 0:03:00]}  c5 {[%clk 0:03:00]} 4. dxc5 {[%clk 0:03:01]}  e6 {[%clk 0:03:01]} 5. c3 {[%clk 0:03:01]}  Nc6 {[%clk 0:02:57]} 6. Nf3 {[%clk 0:02:59]}  Bxc5 {[%clk 0:02:57]} 7. b4 {[%clk 0:03:00]}  Be7 {[%clk 0:02:53]} 8. Bd3 {[%clk 0:02:52]}  f6 {[%clk 0:02:53]} 9. Bf4 {[%clk 0:02:50]}  g5 {[%clk 0:02:41]} 10. exf6 {[%clk 0:02:48]}  gxf4 {[%clk 0:02:33]} 11. fxe7 {[%clk 0:02:48]}  Qxe7 {[%clk 0:02:34]} 12. O-O {[%clk 0:02:43]}  Bd7 {[%clk 0:02:30]} 13. Re1 {[%clk 0:02:43]}  O-O-O {[%clk 0:02:29]} 14. Nbd2 {[%clk 0:02:43]}  Nf6 {[%clk 0:02:29]} 15. b5 {[%clk 0:02:39]}  Na5 {[%clk 0:02:26]} 16. Ne5 {[%clk 0:02:40]}  Rhf8 {[%clk 0:01:59]} 17. Qa4 {[%clk 0:02:39]}  b6 {[%clk 0:01:55]} 18. Qb4 {[%clk 0:02:34]}  Qc5 {[%clk 0:01:39]} 19. Ndf3 {[%clk 0:02:25]}  Be8 {[%clk 0:01:35]} 20. Nd4 {[%clk 0:02:21]}  Rd6 {[%clk 0:01:29]} 21. Re2 {[%clk 0:01:49]}  Nd7 {[%clk 0:01:19]} 22. Nef3 {[%clk 0:01:44]}  Bf7 {[%clk 0:01:13]} 23. Rae1 {[%clk 0:01:40]}  Re8 {[%clk 0:01:06]} 24. Ng5 {[%clk 0:01:40]}  Bg8 {[%clk 0:01:03]} 25. Ngxe6 {[%clk 0:01:39]}  Bxe6 {[%clk 0:00:49]} 26. Rxe6 {[%clk 0:01:36]}  Rdxe6 {[%clk 0:00:46]} 27. Rxe6 {[%clk 0:01:36]}  Rf8 {[%clk 0:00:20]} 28. h3 {[%clk 0:01:25]}  Nc4 {[%clk 0:00:20]} 29. Rc6+ {[%clk 0:01:25]} 1-0


[Site "https://www.chess.com"]

[Event "Titled Tuesday Blitz March 28 Late 2023"]
[White "Erigaisi Arjun"]
[Black "Adewumi, Tanitoluwa"]
[WhiteFideId "35009192"]
[BlackFideId "30966396"]
[WhiteElo "2737"]
[BlackElo "2751"]
[Result "1-0"]
[Round "05"]
[TimeControl "180+2"]
[Date "2023.03.28"]
[WhiteClock "0:00:51"]
[BlackClock "0:00:03"]

1. b3 {[%clk 0:02:55]}  Nf6 {[%clk 0:02:57]} 2. Bb2 {[%clk 0:02:56]}  g6 {[%clk 0:02:58]} 3. g3 {[%clk 0:02:56]}  Bg7 {[%clk 0:02:57]} 4. Bg2 {[%clk 0:02:57]}  d5 {[%clk 0:02:58]} 5. Nf3 {[%clk 0:02:56]}  O-O {[%clk 0:02:48]} 6. c4 {[%clk 0:02:55]}  c5 {[%clk 0:02:48]} 7. cxd5 {[%clk 0:02:54]}  Nxd5 {[%clk 0:02:49]} 8. Bxg7 {[%clk 0:02:54]}  Kxg7 {[%clk 0:02:49]} 9. O-O {[%clk 0:02:55]}  Nc6 {[%clk 0:02:50]} 10. d4 {[%clk 0:02:54]}  cxd4 {[%clk 0:02:47]} 11. Nxd4 {[%clk 0:02:55]}  e5 {[%clk 0:02:40]} 12. Nxc6 {[%clk 0:02:54]}  bxc6 {[%clk 0:02:41]} 13. Qc2 {[%clk 0:02:51]}  Qf6 {[%clk 0:02:33]} 14. Nd2 {[%clk 0:02:49]}  Bg4 {[%clk 0:02:13]} 15. Ne4 {[%clk 0:02:44]}  Qe7 {[%clk 0:02:01]} 16. Rac1 {[%clk 0:02:42]}  Rac8 {[%clk 0:01:57]} 17. h3 {[%clk 0:02:39]}  Bf5 {[%clk 0:01:54]} 18. Qb2 {[%clk 0:02:35]}  f6 {[%clk 0:01:47]} 19. Nc5 {[%clk 0:02:26]}  Nb6 {[%clk 0:01:00]} 20. e4 {[%clk 0:02:14]}  Be6 {[%clk 0:01:00]} 21. f4 {[%clk 0:02:13]}  Bf7 {[%clk 0:00:47]} 22. fxe5 {[%clk 0:02:08]}  Qxe5 {[%clk 0:00:45]} 23. Qxe5 {[%clk 0:02:08]}  fxe5 {[%clk 0:00:46]} 24. h4 {[%clk 0:02:09]}  Bg8 {[%clk 0:00:44]} 25. Nd3 {[%clk 0:02:05]}  Rxf1+ {[%clk 0:00:40]} 26. Kxf1 {[%clk 0:02:06]}  Kf6 {[%clk 0:00:37]} 27. Rc5 {[%clk 0:02:03]}  Nd7 {[%clk 0:00:30]} 28. Ra5 {[%clk 0:02:03]}  Rc7 {[%clk 0:00:31]} 29. Bh3 {[%clk 0:01:51]}  Be6 {[%clk 0:00:30]} 30. Bxe6 {[%clk 0:01:51]}  Kxe6 {[%clk 0:00:31]} 31. Ke2 {[%clk 0:01:52]}  Kd6 {[%clk 0:00:29]} 32. Kd2 {[%clk 0:01:47]}  Rb7 {[%clk 0:00:22]} 33. Kc3 {[%clk 0:01:42]}  Rc7 {[%clk 0:00:17]} 34. b4 {[%clk 0:01:41]}  Rb7 {[%clk 0:00:18]} 35. a4 {[%clk 0:01:34]}  Rc7 {[%clk 0:00:15]} 36. Nb2 {[%clk 0:01:32]}  Rb7 {[%clk 0:00:13]} 37. Nc4+ {[%clk 0:01:31]}  Ke6 {[%clk 0:00:13]} 38. g4 {[%clk 0:01:29]}  h5 {[%clk 0:00:12]} 39. g5 {[%clk 0:01:29]}  Rc7 {[%clk 0:00:07]} 40. Nb2 {[%clk 0:01:22]}  Nb6 {[%clk 0:00:05]} 41. Nd3 {[%clk 0:01:21]}  Nd7 {[%clk 0:00:05]} 42. Ra6 {[%clk 0:01:20]}  Nb8 {[%clk 0:00:05]} 43. Nc5+ {[%clk 0:01:20]}  Kd6 {[%clk 0:00:05]} 44. Ra5 {[%clk 0:01:20]}  Nd7 {[%clk 0:00:04]} 45. Nxd7 {[%clk 0:01:06]}  Rxd7 {[%clk 0:00:05]} 46. Ra6 {[%clk 0:01:07]}  Rb7 {[%clk 0:00:05]} 47. Kc4 {[%clk 0:01:01]}  Rc7 {[%clk 0:00:01]} 48. b5 {[%clk 0:00:55]}  Kd7 {[%clk 0:00:01]} 49. Kb4 {[%clk 0:00:54]}  cxb5 {[%clk 0:00:01]} 50. axb5 {[%clk 0:00:55]}  Rc1 {[%clk 0:00:01]} 51. Rxa7+ {[%clk 0:00:53]}  Ke6 {[%clk 0:00:01]} 52. Ra6+ {[%clk 0:00:53]}  Kd7 {[%clk 0:00:01]} 53. Rxg6 {[%clk 0:00:53]}  Re1 {[%clk 0:00:02]} 54. b6 {[%clk 0:00:51]}  Rxe4+ {[%clk 0:00:03]} 55. Kc5 {[%clk 0:00:52]}  Re1 {[%clk 0:00:03]} 56. Rg7+ {[%clk 0:00:52]}  Kc8 {[%clk 0:00:02]} 57. g6 {[%clk 0:00:50]}  Rc1+ {[%clk 0:00:02]} 58. Kd5 {[%clk 0:00:50]}  Rb1 {[%clk 0:00:02]} 59. b7+ {[%clk 0:00:50]}  Kb8 {[%clk 0:00:02]} 60. Kxe5 {[%clk 0:00:50]}  Re1+ {[%clk 0:00:02]} 61. Kf6 {[%clk 0:00:51]}  Rf1+ {[%clk 0:00:02]} 62. Kg5 {[%clk 0:00:51]}  Rg1+ {[%clk 0:00:03]} 63. Kxh5 {[%clk 0:00:52]}  Rd1 {[%clk 0:00:03]} 64. Rf7 {[%clk 0:00:52]}  Rd5+ {[%clk 0:00:03]} 65. Kh6 {[%clk 0:00:52]}  Rd8 {[%clk 0:00:03]} 66. g7 {[%clk 0:00:52]}  Rg8 {[%clk 0:00:03]} 67. Kh7 {[%clk 0:00:52]}  Rd8 {[%clk 0:00:03]} 68. g8=Q {[%clk 0:00:52]}  Rf8 {[%clk 0:00:02]} 69. Qxf8+ {[%clk 0:00:52]}  Ka7 {[%clk 0:00:02]} 70. b8=Q+ {[%clk 0:00:53]}  Ka6 {[%clk 0:00:03]} 71. Qa3# {[%clk 0:00:51]} 1-0


[Site "https://www.chess.com"]

[Event "Titled Tuesday Blitz March 28 Late 2023"]
[White "Rodshtein, Maxim"]
[Black "Gholami Orimi, Mahdi"]
[WhiteFideId "2806851"]
[BlackFideId "12558486"]
[WhiteElo "2555"]
[BlackElo "2363"]
[Result "0-1"]
[Round "05"]
[TimeControl "180+2"]
[Date "2023.03.28"]
[WhiteClock "0:00:08"]
[BlackClock "0:00:08"]

1. d4 {[%clk 0:03:00]}  Nf6 {[%clk 0:02:57]} 2. Bf4 {[%clk 0:03:00]}  c5 {[%clk 0:02:57]} 3. d5 {[%clk 0:03:00]}  d6 {[%clk 0:02:56]} 4. Nc3 {[%clk 0:02:57]}  g6 {[%clk 0:02:56]} 5. e4 {[%clk 0:02:56]}  Bg7 {[%clk 0:02:56]} 6. Qd2 {[%clk 0:02:54]}  Nbd7 {[%clk 0:02:45]} 7. f3 {[%clk 0:02:51]}  a6 {[%clk 0:02:44]} 8. a4 {[%clk 0:02:49]}  b6 {[%clk 0:02:43]} 9. h4 {[%clk 0:02:42]}  Rb8 {[%clk 0:02:39]} 10. g4 {[%clk 0:02:37]}  Ne5 {[%clk 0:02:36]} 11. h5 {[%clk 0:02:33]}  gxh5 {[%clk 0:02:32]} 12. Bxe5 {[%clk 0:02:22]}  dxe5 {[%clk 0:02:31]} 13. g5 {[%clk 0:02:22]}  Nd7 {[%clk 0:02:27]} 14. Rxh5 {[%clk 0:02:22]}  Qc7 {[%clk 0:02:22]} 15. Qh2 {[%clk 0:02:15]}  Nf8 {[%clk 0:02:21]} 16. O-O-O {[%clk 0:02:09]}  c4 {[%clk 0:02:12]} 17. Bh3 {[%clk 0:02:03]}  b5 {[%clk 0:02:09]} 18. d6 {[%clk 0:01:59]}  exd6 {[%clk 0:02:05]} 19. Nd5 {[%clk 0:01:56]}  Qa5 {[%clk 0:02:02]} 20. Bxc8 {[%clk 0:01:41]}  Rxc8 {[%clk 0:02:02]} 21. Ne2 {[%clk 0:01:35]}  b4 {[%clk 0:01:58]} 22. c3 {[%clk 0:01:19]}  Qxa4 {[%clk 0:01:39]} 23. cxb4 {[%clk 0:01:16]}  Qa1+ {[%clk 0:01:20]} 24. Kc2 {[%clk 0:01:16]}  Qa4+ {[%clk 0:01:21]} 25. Kd2 {[%clk 0:01:15]}  Qb3 {[%clk 0:01:15]} 26. Kc1 {[%clk 0:01:11]}  a5 {[%clk 0:00:46]} 27. bxa5 {[%clk 0:01:06]}  Rc5 {[%clk 0:00:44]} 28. Qh3 {[%clk 0:00:46]}  Ne6 {[%clk 0:00:44]} 29. g6 {[%clk 0:00:46]}  Rxa5 {[%clk 0:00:25]} 30. gxf7+ {[%clk 0:00:44]}  Kd7 {[%clk 0:00:26]} 31. Kd2 {[%clk 0:00:31]}  Qxb2+ {[%clk 0:00:20]} 32. Ke1 {[%clk 0:00:32]}  Ra2 {[%clk 0:00:21]} 33. Ndc3 {[%clk 0:00:32]}  Bf8 {[%clk 0:00:15]} 34. Nxa2 {[%clk 0:00:30]}  Qxa2 {[%clk 0:00:14]} 35. Rxe5 {[%clk 0:00:29]}  c3 {[%clk 0:00:12]} 36. Nxc3 {[%clk 0:00:29]}  Qc4 {[%clk 0:00:12]} 37. Ne2 {[%clk 0:00:23]}  Bg7 {[%clk 0:00:11]} 38. Red5 {[%clk 0:00:22]}  Bf8 {[%clk 0:00:04]} 39. Nf4 {[%clk 0:00:19]}  Qc3+ {[%clk 0:00:03]} 40. Kf1 {[%clk 0:00:19]}  Qc4+ {[%clk 0:00:03]} 41. R5d3 {[%clk 0:00:19]}  Be7 {[%clk 0:00:02]} 42. Nxe6 {[%clk 0:00:17]}  Qxe6 {[%clk 0:00:03]} 43. Qxe6+ {[%clk 0:00:16]}  Kxe6 {[%clk 0:00:04]} 44. Rd5 {[%clk 0:00:17]}  Kxf7 {[%clk 0:00:05]} 45. Rf5+ {[%clk 0:00:17]}  Ke6 {[%clk 0:00:05]} 46. Rh5 {[%clk 0:00:17]}  h6 {[%clk 0:00:06]} 47. Kf2 {[%clk 0:00:18]}  Bg5 {[%clk 0:00:06]} 48. Kg3 {[%clk 0:00:18]}  Rf8 {[%clk 0:00:07]} 49. Rf1 {[%clk 0:00:18]}  Ke5 {[%clk 0:00:07]} 50. f4+ {[%clk 0:00:16]}  Ke6 {[%clk 0:00:07]} 51. Kg4 {[%clk 0:00:15]}  Kd7 {[%clk 0:00:03]} 52. Rf3 {[%clk 0:00:15]}  Be7 {[%clk 0:00:01]} 53. Rxh6 {[%clk 0:00:16]}  Rg8+ {[%clk 0:00:02]} 54. Kf5 {[%clk 0:00:15]}  Rf8+ {[%clk 0:00:02]} 55. Kg4 {[%clk 0:00:16]}  Rg8+ {[%clk 0:00:03]} 56. Kh3 {[%clk 0:00:16]}  Rg1 {[%clk 0:00:04]} 57. Rg3 {[%clk 0:00:16]}  Rh1+ {[%clk 0:00:04]} 58. Kg4 {[%clk 0:00:14]}  Rxh6 {[%clk 0:00:05]} 59. Kf3 {[%clk 0:00:14]}  Ke6 {[%clk 0:00:05]} 60. Ke3 {[%clk 0:00:13]}  Rh4 {[%clk 0:00:05]} 61. Rg6+ {[%clk 0:00:12]}  Kf7 {[%clk 0:00:05]} 62. Rg3 {[%clk 0:00:12]}  Bf8 {[%clk 0:00:06]} 63. Rf3 {[%clk 0:00:12]}  Bh6 {[%clk 0:00:06]} 64. Kd4 {[%clk 0:00:09]}  Bxf4 {[%clk 0:00:06]} 65. Kd5 {[%clk 0:00:09]}  Ke7 {[%clk 0:00:06]} 66. Rb3 {[%clk 0:00:08]}  Be5 {[%clk 0:00:07]} 67. Rb7+ {[%clk 0:00:07]}  Kf6 {[%clk 0:00:07]} 68. Rb8 {[%clk 0:00:07]}  Rh1 {[%clk 0:00:07]} 69. Rf8+ {[%clk 0:00:08]}  Ke7 {[%clk 0:00:08]} 70. Rf3 {[%clk 0:00:08]}  Rd1+ {[%clk 0:00:08]} 0-1


[Site "https://www.chess.com"]

[Event "Titled Tuesday Blitz March 28 Late 2023"]
[White "Herrera Reyes, Jose Antonio"]
[Black "Sargsyan, Shant"]
[WhiteFideId "2274914"]
[BlackFideId "13306766"]
[WhiteElo "2273"]
[BlackElo "2628"]
[Result "0-1"]
[Round "05"]
[TimeControl "180+2"]
[Date "2023.03.28"]
[WhiteClock "0:01:13"]
[BlackClock "0:02:27"]

1. Nf3 {[%clk 0:02:59]}  g6 {[%clk 0:03:00]} 2. g3 {[%clk 0:02:59]}  Bg7 {[%clk 0:03:00]} 3. Bg2 {[%clk 0:03:00]}  c5 {[%clk 0:03:00]} 4. d3 {[%clk 0:03:01]}  Nc6 {[%clk 0:03:01]} 5. Nc3 {[%clk 0:03:01]}  d6 {[%clk 0:03:01]} 6. h4 {[%clk 0:03:01]}  Nf6 {[%clk 0:03:02]} 7. Bg5 {[%clk 0:03:01]}  h6 {[%clk 0:03:01]} 8. Bd2 {[%clk 0:03:01]}  Rb8 {[%clk 0:03:01]} 9. a4 {[%clk 0:03:00]}  a6 {[%clk 0:03:01]} 10. O-O {[%clk 0:02:57]}  b5 {[%clk 0:03:01]} 11. axb5 {[%clk 0:02:58]}  axb5 {[%clk 0:03:02]} 12. Qc1 {[%clk 0:02:55]}  b4 {[%clk 0:03:01]} 13. Nd1 {[%clk 0:02:56]}  Ng4 {[%clk 0:02:50]} 14. Ne3 {[%clk 0:02:55]}  h5 {[%clk 0:02:50]} 15. Nxg4 {[%clk 0:02:51]}  hxg4 {[%clk 0:02:50]} 16. Ng5 {[%clk 0:02:50]}  Nd4 {[%clk 0:02:51]} 17. Re1 {[%clk 0:02:50]}  Bb7 {[%clk 0:02:45]} 18. Bxb7 {[%clk 0:02:33]}  Rxb7 {[%clk 0:02:46]} 19. e3 {[%clk 0:02:33]}  Nc6 {[%clk 0:02:45]} 20. Qd1 {[%clk 0:02:30]}  Qc8 {[%clk 0:02:45]} 21. e4 {[%clk 0:02:26]}  Bxb2 {[%clk 0:02:39]} 22. Rb1 {[%clk 0:02:26]}  Bf6 {[%clk 0:02:37]} 23. Be3 {[%clk 0:01:55]}  Bxg5 {[%clk 0:02:37]} 24. Bxg5 {[%clk 0:01:54]}  Nd4 {[%clk 0:02:35]} 25. Kg2 {[%clk 0:01:41]}  Nf3 {[%clk 0:02:35]} 26. Re3 {[%clk 0:01:41]}  f6 {[%clk 0:02:35]} 27. e5 {[%clk 0:01:25]}  dxe5 {[%clk 0:02:33]} 28. Bxf6 {[%clk 0:01:14]}  exf6 {[%clk 0:02:32]} 29. c3 {[%clk 0:01:15]}  Qc6 {[%clk 0:02:32]} 30. Kf1 {[%clk 0:01:13]}  bxc3 {[%clk 0:02:27]} 0-1


[Site "https://www.chess.com"]

[Event "Titled Tuesday Blitz March 28 Late 2023"]
[White "Schmakel, Sam"]
[Black "Deac, Bogdan-Daniel"]
[WhiteFideId "2039311"]
[BlackFideId "1226380"]
[WhiteElo "2356"]
[BlackElo "2649"]
[Result "0-1"]
[Round "05"]
[TimeControl "180+2"]
[Date "2023.03.28"]
[WhiteClock "0:00:03"]
[BlackClock "0:00:07"]

1. Nf3 {[%clk 0:03:00]}  b6 {[%clk 0:02:57]} 2. g3 {[%clk 0:03:00]}  Bb7 {[%clk 0:02:58]} 3. Bg2 {[%clk 0:03:01]}  g6 {[%clk 0:02:58]} 4. O-O {[%clk 0:03:00]}  Bg7 {[%clk 0:02:59]} 5. c4 {[%clk 0:03:00]}  c5 {[%clk 0:02:59]} 6. Nc3 {[%clk 0:02:56]}  Nf6 {[%clk 0:02:59]} 7. d4 {[%clk 0:02:55]}  cxd4 {[%clk 0:03:00]} 8. Nxd4 {[%clk 0:02:55]}  Bxg2 {[%clk 0:03:00]} 9. Kxg2 {[%clk 0:02:56]}  Qc8 {[%clk 0:03:00]} 10. b3 {[%clk 0:02:55]}  Qb7+ {[%clk 0:03:00]} 11. f3 {[%clk 0:02:55]}  O-O {[%clk 0:03:00]} 12. e4 {[%clk 0:02:53]}  d6 {[%clk 0:03:00]} 13. Be3 {[%clk 0:02:51]}  a6 {[%clk 0:02:58]} 14. Rc1 {[%clk 0:02:49]}  e6 {[%clk 0:02:58]} 15. Qd2 {[%clk 0:02:41]}  Rd8 {[%clk 0:02:53]} 16. Bg5 {[%clk 0:02:16]}  Nbd7 {[%clk 0:02:51]} 17. Rfe1 {[%clk 0:02:12]}  Rac8 {[%clk 0:02:34]} 18. h4 {[%clk 0:02:11]}  h5 {[%clk 0:02:29]} 19. Nde2 {[%clk 0:01:34]}  Nf8 {[%clk 0:02:18]} 20. a4 {[%clk 0:01:18]}  N8h7 {[%clk 0:02:10]} 21. Bf4 {[%clk 0:01:17]}  Nd7 {[%clk 0:02:00]} 22. Qe3 {[%clk 0:01:03]}  Ne5 {[%clk 0:01:28]} 23. Red1 {[%clk 0:00:59]}  Nf8 {[%clk 0:01:10]} 24. Bg5 {[%clk 0:00:55]}  Rd7 {[%clk 0:01:05]} 25. Rd2 {[%clk 0:00:55]}  Kh7 {[%clk 0:00:47]} 26. Rcd1 {[%clk 0:00:46]}  Qc7 {[%clk 0:00:47]} 27. Nd4 {[%clk 0:00:28]}  Kg8 {[%clk 0:00:28]} 28. Qe2 {[%clk 0:00:26]}  Nh7 {[%clk 0:00:23]} 29. Be3 {[%clk 0:00:26]}  Nf6 {[%clk 0:00:22]} 30. Bf4 {[%clk 0:00:19]}  Ne8 {[%clk 0:00:21]} 31. Na2 {[%clk 0:00:14]}  Qb7 {[%clk 0:00:18]} 32. Nb4 {[%clk 0:00:12]}  Rdc7 {[%clk 0:00:18]} 33. Be3 {[%clk 0:00:07]}  Nd7 {[%clk 0:00:15]} 34. Ndc2 {[%clk 0:00:03]}  Nc5 {[%clk 0:00:14]} 35. Bxc5 {[%clk 0:00:01]}  bxc5 {[%clk 0:00:14]} 36. Nd3 {[%clk 0:00:01]}  Qxb3 {[%clk 0:00:15]} 37. Nf4 {[%clk 0:00:02]}  Qxa4 {[%clk 0:00:14]} 38. Ne3 {[%clk 0:00:02]}  Rb7 {[%clk 0:00:13]} 39. g4 {[%clk 0:00:02]}  Be5 {[%clk 0:00:11]} 40. Nh3 {[%clk 0:00:02]}  Nf6 {[%clk 0:00:08]} 41. gxh5 {[%clk 0:00:02]}  Nxh5 {[%clk 0:00:08]} 42. Ng4 {[%clk 0:00:03]}  Bd4 {[%clk 0:00:07]} 43. f4 {[%clk 0:00:02]}  Rb3 {[%clk 0:00:05]} 44. Rd3 {[%clk 0:00:03]}  Rb2 {[%clk 0:00:05]} 45. R1d2 {[%clk 0:00:03]}  Rcb8 {[%clk 0:00:06]} 46. f5 {[%clk 0:00:02]}  Rxd2 {[%clk 0:00:06]} 47. Rxd2 {[%clk 0:00:03]}  Rb3 {[%clk 0:00:07]} 48. fxg6 {[%clk 0:00:02]}  Rg3+ {[%clk 0:00:07]} 49. Kh2 {[%clk 0:00:03]}  Rxh3+ {[%clk 0:00:07]} 0-1


[Site "https://www.chess.com"]